[Event "Titled Tuesday Blitz April 25 Early 2023"]
[White "Levitan, Caleb Levi"]
[Black "Martinez Ramirez, Lennis"]
[WhiteFideId "14332620"]
[BlackFideId "3509079"]
[WhiteElo "1963"]
[BlackElo "2410"]
[Result "0-1"]
[Round "01"]
[TimeControl "180+2"]
[Date "2023.04.25"]
[WhiteClock "0:00:14"]
[BlackClock "0:00:27"]

1. e4 {[%clk 0:02:57]}  c5 {[%clk 0:02:59]} 2. Nf3 {[%clk 0:02:56]}  Nc6 {[%clk 0:02:59]} 3. Nc3 {[%clk 0:02:54]}  d6 {[%clk 0:02:57]} 4. d4 {[%clk 0:02:50]}  cxd4 {[%clk 0:02:58]} 5. Nxd4 {[%clk 0:02:51]}  Nf6 {[%clk 0:02:58]} 6. Bc4 {[%clk 0:02:49]}  e6 {[%clk 0:02:57]} 7. Bb3 {[%clk 0:02:48]}  Be7 {[%clk 0:02:53]} 8. Nxc6 {[%clk 0:02:45]}  bxc6 {[%clk 0:02:52]} 9. g4 {[%clk 0:02:45]}  d5 {[%clk 0:02:32]} 10. exd5 {[%clk 0:02:32]}  exd5 {[%clk 0:02:25]} 11. g5 {[%clk 0:02:30]}  Ng4 {[%clk 0:02:03]} 12. h3 {[%clk 0:01:53]}  Ne5 {[%clk 0:02:01]} 13. Qe2 {[%clk 0:01:30]}  Ng6 {[%clk 0:01:56]} 14. h4 {[%clk 0:01:25]}  Qd6 {[%clk 0:01:42]} 15. h5 {[%clk 0:01:16]}  Nf4 {[%clk 0:01:37]} 16. Bxf4 {[%clk 0:01:16]}  Qxf4 {[%clk 0:01:38]} 17. Bxd5 {[%clk 0:01:12]}  Bd7 {[%clk 0:01:08]} 18. Be4 {[%clk 0:00:57]}  Qxg5 {[%clk 0:01:01]} 19. Qf3 {[%clk 0:00:42]}  O-O {[%clk 0:00:59]} 20. h6 {[%clk 0:00:41]}  g6 {[%clk 0:00:45]} 21. Qe3 {[%clk 0:00:23]}  Qxe3+ {[%clk 0:00:39]} 22. fxe3 {[%clk 0:00:24]}  Bg5 {[%clk 0:00:39]} 23. Kf2 {[%clk 0:00:22]}  f5 {[%clk 0:00:36]} 24. Bf3 {[%clk 0:00:20]}  f4 {[%clk 0:00:32]} 25. e4 {[%clk 0:00:18]}  Bf6 {[%clk 0:00:27]} 26. Rad1 {[%clk 0:00:18]}  Be6 {[%clk 0:00:27]} 27. Ne2 {[%clk 0:00:17]}  Bxb2 {[%clk 0:00:25]} 28. c3 {[%clk 0:00:17]}  Ba3 {[%clk 0:00:23]} 29. Nd4 {[%clk 0:00:15]}  Bd7 {[%clk 0:00:20]} 30. Nc2 {[%clk 0:00:14]}  Bc5+ {[%clk 0:00:19]} 31. Ke2 {[%clk 0:00:14]}  Rad8 {[%clk 0:00:19]} 32. Rd3 {[%clk 0:00:11]}  Be6 {[%clk 0:00:20]} 33. Rxd8 {[%clk 0:00:07]}  Rxd8 {[%clk 0:00:21]} 34. Ke1 {[%clk 0:00:02]}  Bxa2 {[%clk 0:00:20]} 35. Nb4 {[%clk 0:00:01]}  Bxb4 {[%clk 0:00:20]} 36. cxb4 {[%clk 0:00:02]}  Rd3 {[%clk 0:00:19]} 37. Be2 {[%clk 0:00:01]}  Re3 {[%clk 0:00:20]} 38. Rh4 {[%clk 0:00:01]}  Bc4 {[%clk 0:00:19]} 39. Rxf4 {[%clk 0:00:02]}  Rxe2+ {[%clk 0:00:19]} 40. Kd1 {[%clk 0:00:02]}  Bb5 {[%clk 0:00:19]} 41. e5 {[%clk 0:00:03]}  Rxe5 {[%clk 0:00:19]} 42. Rd4 {[%clk 0:00:03]}  Rd5 {[%clk 0:00:19]} 43. Rxd5 {[%clk 0:00:04]}  cxd5 {[%clk 0:00:20]} 44. Kd2 {[%clk 0:00:05]}  Kf7 {[%clk 0:00:20]} 45. Kc3 {[%clk 0:00:06]}  g5 {[%clk 0:00:20]} 46. Kd4 {[%clk 0:00:06]}  Kg6 {[%clk 0:00:21]} 47. Kxd5 {[%clk 0:00:07]}  Kxh6 {[%clk 0:00:21]} 48. Ke4 {[%clk 0:00:08]}  a6 {[%clk 0:00:21]} 49. Kf3 {[%clk 0:00:09]}  Kh5 {[%clk 0:00:21]} 50. Kg3 {[%clk 0:00:10]}  g4 {[%clk 0:00:22]} 51. Kh2 {[%clk 0:00:10]}  Kg5 {[%clk 0:00:22]} 52. Kg2 {[%clk 0:00:11]}  h5 {[%clk 0:00:23]} 53. Kg3 {[%clk 0:00:11]}  h4+ {[%clk 0:00:24]} 54. Kh2 {[%clk 0:00:11]}  Kf4 {[%clk 0:00:25]} 55. Kg2 {[%clk 0:00:12]}  Ke4 {[%clk 0:00:26]} 56. Kg1 {[%clk 0:00:12]}  Kd4 {[%clk 0:00:26]} 57. Kg2 {[%clk 0:00:13]}  Kc4 {[%clk 0:00:26]} 58. Kg1 {[%clk 0:00:14]}  Kxb4 {[%clk 0:00:27]} 0-1


[Site "https://www.chess.com"]

[Event "Titled Tuesday Blitz April 25 Early 2023"]
[White "Panesso Rivera, Henry"]
[Black "Sarkar, Justin"]
[WhiteFideId "4402707"]
[BlackFideId "2010011"]
[WhiteElo "2345"]
[BlackElo "2189"]
[Result "1-0"]
[Round "01"]
[TimeControl "180+2"]
[Date "2023.04.25"]
[WhiteClock "0:01:57"]
[BlackClock "0:00:01"]

1. Nf3 {[%clk 0:02:47]}  Nf6 {[%clk 0:02:57]} 2. g3 {[%clk 0:02:44]}  c5 {[%clk 0:02:52]} 3. Bg2 {[%clk 0:02:43]}  Nc6 {[%clk 0:02:48]} 4. c4 {[%clk 0:02:42]}  d5 {[%clk 0:02:34]} 5. cxd5 {[%clk 0:02:42]}  Nxd5 {[%clk 0:02:34]} 6. Nc3 {[%clk 0:02:43]}  Nc7 {[%clk 0:02:29]} 7. Nh4 {[%clk 0:02:42]}  Qd7 {[%clk 0:02:13]} 8. Qa4 {[%clk 0:02:41]}  Nd4 {[%clk 0:02:07]} 9. Qd1 {[%clk 0:02:40]}  e5 {[%clk 0:02:02]} 10. e3 {[%clk 0:02:40]}  Nc6 {[%clk 0:01:59]} 11. Qa4 {[%clk 0:02:38]}  Nb4 {[%clk 0:01:57]} 12. Qxd7+ {[%clk 0:02:38]}  Bxd7 {[%clk 0:01:55]} 13. O-O {[%clk 0:02:38]}  O-O-O {[%clk 0:01:49]} 14. a3 {[%clk 0:02:32]}  Nd3 {[%clk 0:01:43]} 15. b4 {[%clk 0:02:32]}  cxb4 {[%clk 0:01:33]} 16. axb4 {[%clk 0:02:33]}  a6 {[%clk 0:01:32]} 17. Ba3 {[%clk 0:02:32]}  f5 {[%clk 0:01:20]} 18. e4 {[%clk 0:02:23]}  f4 {[%clk 0:01:15]} 19. Nf5 {[%clk 0:02:22]}  g6 {[%clk 0:01:11]} 20. Nh4 {[%clk 0:02:22]}  Bxb4 {[%clk 0:01:04]} 21. Nd5 {[%clk 0:02:21]}  Nxd5 {[%clk 0:00:58]} 22. exd5 {[%clk 0:02:22]}  Bb5 {[%clk 0:00:56]} 23. Rfb1 {[%clk 0:02:20]}  Bxa3 {[%clk 0:00:35]} 24. Rxa3 {[%clk 0:02:21]}  Nc5 {[%clk 0:00:16]} 25. gxf4 {[%clk 0:02:21]}  exf4 {[%clk 0:00:15]} 26. Rc3 {[%clk 0:02:21]}  b6 {[%clk 0:00:14]} 27. d4 {[%clk 0:02:21]}  g5 {[%clk 0:00:10]} 28. Nf5 {[%clk 0:02:20]}  Bd3 {[%clk 0:00:05]} 29. Rxb6 {[%clk 0:02:16]}  Bxf5 {[%clk 0:00:05]} 30. dxc5 {[%clk 0:02:13]}  g4 {[%clk 0:00:03]} 31. d6 {[%clk 0:02:13]}  f3 {[%clk 0:00:02]} 32. Bf1 {[%clk 0:02:14]}  Kd7 {[%clk 0:00:01]} 33. Rb7+ {[%clk 0:02:13]}  Kc6 {[%clk 0:00:01]} 34. Rc7+ {[%clk 0:02:12]}  Kd5 {[%clk 0:00:01]} 35. Bc4+ {[%clk 0:02:11]}  Kd4 {[%clk 0:00:01]} 36. Rc1 {[%clk 0:02:11]}  Rc8 {[%clk 0:00:01]} 37. Bxa6 {[%clk 0:01:57]}  Rxc7 {[%clk 0:00:02]} 38. dxc7 {[%clk 0:01:58]}  Bc8 {[%clk 0:00:01]} 39. Rd1+ {[%clk 0:01:56]}  Kxc5 {[%clk 0:00:01]} 40. Rd8 {[%clk 0:01:57]} 1-0


[Site "https://www.chess.com"]

[Event "Titled Tuesday Blitz April 25 Early 2023"]
[White "Barwinska, Ewa"]
[Black "Schnaider, Ilan"]
[WhiteFideId "21833761"]
[BlackFideId "169013"]
[WhiteElo "1908"]
[BlackElo "2224"]
[Result "0-1"]
[Round "01"]
[TimeControl "180+2"]
[Date "2023.04.25"]
[WhiteClock "0:00:07"]
[BlackClock "0:00:55"]

1. e4 {[%clk 0:02:57]}  c5 {[%clk 0:02:58]} 2. Nf3 {[%clk 0:02:56]}  d6 {[%clk 0:02:59]} 3. d4 {[%clk 0:02:56]}  cxd4 {[%clk 0:02:59]} 4. Nxd4 {[%clk 0:02:56]}  Nf6 {[%clk 0:02:58]} 5. Nc3 {[%clk 0:02:57]}  a6 {[%clk 0:02:58]} 6. Bg5 {[%clk 0:02:56]}  Nbd7 {[%clk 0:02:58]} 7. f4 {[%clk 0:02:49]}  b5 {[%clk 0:02:54]} 8. Bd3 {[%clk 0:02:16]}  Bb7 {[%clk 0:02:49]} 9. Qe2 {[%clk 0:02:11]}  e5 {[%clk 0:02:12]} 10. Nf5 {[%clk 0:02:01]}  g6 {[%clk 0:02:11]} 11. Ne3 {[%clk 0:01:50]}  Bg7 {[%clk 0:02:07]} 12. Ncd5 {[%clk 0:01:42]}  h6 {[%clk 0:01:58]} 13. Bxf6 {[%clk 0:01:37]}  Nxf6 {[%clk 0:01:57]} 14. Nxf6+ {[%clk 0:01:08]}  Bxf6 {[%clk 0:01:55]} 15. Nd5 {[%clk 0:01:09]}  Bxd5 {[%clk 0:01:55]} 16. exd5 {[%clk 0:01:09]}  O-O {[%clk 0:01:54]} 17. O-O-O {[%clk 0:01:06]}  exf4 {[%clk 0:01:52]} 18. Qg4 {[%clk 0:00:58]}  Kg7 {[%clk 0:01:50]} 19. h4 {[%clk 0:00:56]}  Qa5 {[%clk 0:01:40]} 20. h5 {[%clk 0:00:37]}  g5 {[%clk 0:00:55]} 21. Qf5 {[%clk 0:00:34]}  Rh8 {[%clk 0:00:56]} 22. a3 {[%clk 0:00:15]}  b4 {[%clk 0:00:56]} 23. axb4 {[%clk 0:00:12]}  Qa1+ {[%clk 0:00:56]} 24. Kd2 {[%clk 0:00:12]}  Qxb2 {[%clk 0:00:57]} 25. Qd7 {[%clk 0:00:07]}  Rae8 {[%clk 0:00:55]} 0-1


[Site "https://www.chess.com"]

[Event "Titled Tuesday Blitz April 25 Early 2023"]
[White "Golichenko, Ilija"]
[Black "Alahakoon, Isuru"]
[WhiteFideId "14117223"]
[BlackFideId "9900993"]
[WhiteElo "2339"]
[BlackElo "1995"]
[Result "0-1"]
[Round "01"]
[TimeControl "180+2"]
[Date "2023.04.25"]
[WhiteClock "0:01:45"]
[BlackClock "0:00:03"]

1. d4 {[%clk 0:03:00]}  d5 {[%clk 0:02:58]} 2. Nc3 {[%clk 0:03:01]}  Nf6 {[%clk 0:02:57]} 3. Bf4 {[%clk 0:03:02]}  e6 {[%clk 0:02:56]} 4. e3 {[%clk 0:03:02]}  Bd6 {[%clk 0:02:51]} 5. Bg3 {[%clk 0:02:58]}  O-O {[%clk 0:02:48]} 6. Bd3 {[%clk 0:02:57]}  a6 {[%clk 0:02:39]} 7. Nf3 {[%clk 0:02:56]}  c5 {[%clk 0:02:38]} 8. Ne5 {[%clk 0:02:54]}  c4 {[%clk 0:02:25]} 9. Be2 {[%clk 0:02:52]}  b5 {[%clk 0:02:25]} 10. f4 {[%clk 0:02:52]}  b4 {[%clk 0:02:24]} 11. Nb1 {[%clk 0:02:52]}  Ne4 {[%clk 0:02:20]} 12. Nd2 {[%clk 0:02:51]}  Nxg3 {[%clk 0:02:18]} 13. hxg3 {[%clk 0:02:52]}  f6 {[%clk 0:02:17]} 14. Nef3 {[%clk 0:02:51]}  Nc6 {[%clk 0:02:09]} 15. c3 {[%clk 0:02:52]}  bxc3 {[%clk 0:02:08]} 16. bxc3 {[%clk 0:02:52]}  e5 {[%clk 0:01:48]} 17. Qc2 {[%clk 0:02:40]}  h6 {[%clk 0:01:25]} 18. e4 {[%clk 0:02:24]}  exd4 {[%clk 0:01:10]} 19. Nxd4 {[%clk 0:02:19]}  Nxd4 {[%clk 0:00:39]} 20. cxd4 {[%clk 0:02:20]}  Qa5 {[%clk 0:00:26]} 21. O-O {[%clk 0:02:13]}  Qb6 {[%clk 0:00:18]} 22. Nf3 {[%clk 0:02:09]}  dxe4 {[%clk 0:00:18]} 23. Bxc4+ {[%clk 0:02:08]}  Kh8 {[%clk 0:00:15]} 24. Qxe4 {[%clk 0:02:08]}  Bb7 {[%clk 0:00:16]} 25. Bd5 {[%clk 0:01:58]}  Bxd5 {[%clk 0:00:15]} 26. Qxd5 {[%clk 0:01:58]}  Rad8 {[%clk 0:00:16]} 27. Rab1 {[%clk 0:01:54]}  Qa7 {[%clk 0:00:16]} 28. Qc6 {[%clk 0:01:54]}  Rd7 {[%clk 0:00:08]} 29. Rb6 {[%clk 0:01:50]}  a5 {[%clk 0:00:07]} 30. Ra6 {[%clk 0:01:50]}  Qc7 {[%clk 0:00:07]} 31. Qxc7 {[%clk 0:01:50]}  Bxc7 {[%clk 0:00:08]} 32. Ra7 {[%clk 0:01:50]}  Rfd8 {[%clk 0:00:07]} 33. Rb1 {[%clk 0:01:49]}  Bd6 {[%clk 0:00:03]} 34. Rxd7 {[%clk 0:01:46]}  Rxd7 {[%clk 0:00:04]} 35. Rb8+ {[%clk 0:01:46]}  Kh7 {[%clk 0:00:02]} 36. Kf2 {[%clk 0:01:45]}  Bxb8 {[%clk 0:00:02]} 37. Ke3 {[%clk 0:01:45]}  Rb7 {[%clk 0:00:03]} 38. Kd3 {[%clk 0:01:44]}  Rb2 {[%clk 0:00:03]} 39. a3 {[%clk 0:01:44]}  Rxg2 {[%clk 0:00:03]} 40. Nd2 {[%clk 0:01:44]}  Rxg3+ {[%clk 0:00:03]} 41. Kc4 {[%clk 0:01:45]}  Bxf4 {[%clk 0:00:03]} 42. Ne4 {[%clk 0:01:45]}  Rxa3 {[%clk 0:00:03]} 43. d5 {[%clk 0:01:46]}  Ra1 {[%clk 0:00:03]} 44. Nc3 {[%clk 0:01:45]}  Rc1 {[%clk 0:00:03]} 45. Kd3 {[%clk 0:01:44]}  Rxc3+ {[%clk 0:00:03]} 46. Kxc3 {[%clk 0:01:45]}  Bd6 {[%clk 0:00:03]} 0-1


[Site "https://www.chess.com"]

[Event "Titled Tuesday Blitz April 25 Early 2023"]
[White "Tsyhanchuk, Stanislav"]
[Black "Melikyan, Gnel"]
[WhiteFideId "13505130"]
[BlackFideId "54109990"]
[WhiteElo "2173"]
[BlackElo "2138"]
[Result "0-1"]
[Round "01"]
[TimeControl "180+2"]
[Date "2023.04.25"]
[WhiteClock "0:00:13"]
[BlackClock "0:00:09"]

1. c4 {[%clk 0:03:00]}  Nf6 {[%clk 0:02:57]} 2. Nc3 {[%clk 0:03:00]}  c5 {[%clk 0:02:57]} 3. e4 {[%clk 0:02:58]}  Nc6 {[%clk 0:02:57]} 4. Nge2 {[%clk 0:02:58]}  g6 {[%clk 0:02:57]} 5. d4 {[%clk 0:02:57]}  cxd4 {[%clk 0:02:57]} 6. Nxd4 {[%clk 0:02:58]}  Bg7 {[%clk 0:02:58]} 7. Be3 {[%clk 0:02:56]}  d6 {[%clk 0:02:53]} 8. Be2 {[%clk 0:02:56]}  Bd7 {[%clk 0:02:52]} 9. O-O {[%clk 0:02:55]}  Rc8 {[%clk 0:02:51]} 10. b3 {[%clk 0:02:52]}  a6 {[%clk 0:02:50]} 11. Rc1 {[%clk 0:02:51]}  h5 {[%clk 0:02:50]} 12. f4 {[%clk 0:02:46]}  Ng4 {[%clk 0:02:48]} 13. Bxg4 {[%clk 0:02:38]}  hxg4 {[%clk 0:02:43]} 14. g3 {[%clk 0:02:31]}  Qa5 {[%clk 0:02:19]} 15. Rf2 {[%clk 0:02:07]}  O-O {[%clk 0:01:45]} 16. Nd5 {[%clk 0:02:04]}  Rfe8 {[%clk 0:01:34]} 17. f5 {[%clk 0:01:35]}  Ne5 {[%clk 0:01:21]} 18. Bg5 {[%clk 0:01:25]}  f6 {[%clk 0:01:11]} 19. Bf4 {[%clk 0:01:25]}  g5 {[%clk 0:01:10]} 20. Bxe5 {[%clk 0:01:25]}  dxe5 {[%clk 0:01:10]} 21. Ne6 {[%clk 0:01:21]}  Kf7 {[%clk 0:00:57]} 22. Qxg4 {[%clk 0:01:18]}  Rh8 {[%clk 0:00:55]} 23. Nxg7 {[%clk 0:01:16]}  Kxg7 {[%clk 0:00:55]} 24. Nxe7 {[%clk 0:01:16]}  Qa3 {[%clk 0:00:51]} 25. Nxc8 {[%clk 0:00:57]}  Qxc1+ {[%clk 0:00:50]} 26. Kg2 {[%clk 0:00:57]}  Rxc8 {[%clk 0:00:42]} 27. Qe2 {[%clk 0:00:55]}  Bc6 {[%clk 0:00:32]} 28. Qd3 {[%clk 0:00:53]}  Rf8 {[%clk 0:00:24]} 29. b4 {[%clk 0:00:46]}  Rf7 {[%clk 0:00:22]} 30. b5 {[%clk 0:00:46]}  axb5 {[%clk 0:00:22]} 31. cxb5 {[%clk 0:00:47]}  Rd7 {[%clk 0:00:23]} 32. Qe2 {[%clk 0:00:47]}  Rd4 {[%clk 0:00:05]} 33. bxc6 {[%clk 0:00:46]}  Qxc6 {[%clk 0:00:06]} 34. Kf3 {[%clk 0:00:37]}  Qc3+ {[%clk 0:00:06]} 35. Kg2 {[%clk 0:00:36]}  Qc6 {[%clk 0:00:06]} 36. Qh5 {[%clk 0:00:25]}  Qxe4+ {[%clk 0:00:07]} 37. Kh3 {[%clk 0:00:24]}  g4+ {[%clk 0:00:05]} 38. Kh4 {[%clk 0:00:25]}  Qc6 {[%clk 0:00:05]} 39. Qg6+ {[%clk 0:00:24]}  Kf8 {[%clk 0:00:06]} 40. Rb2 {[%clk 0:00:18]}  Rd7 {[%clk 0:00:06]} 41. Qh6+ {[%clk 0:00:15]}  Kg8 {[%clk 0:00:07]} 42. Qe3 {[%clk 0:00:15]}  Rh7+ {[%clk 0:00:07]} 43. Kxg4 {[%clk 0:00:15]}  Rg7+ {[%clk 0:00:07]} 44. Kh3 {[%clk 0:00:16]}  Rh7+ {[%clk 0:00:08]} 45. Kg4 {[%clk 0:00:16]}  Qc4+ {[%clk 0:00:08]} 46. Kf3 {[%clk 0:00:13]}  Qd5+ {[%clk 0:00:09]} 47. Kf2 {[%clk 0:00:13]}  Rxh2+ {[%clk 0:00:08]} 48. Ke1 {[%clk 0:00:13]}  Qh1+ {[%clk 0:00:09]} 49. Qg1 {[%clk 0:00:13]}  Qxg1# {[%clk 0:00:09]} 0-1


[Site "https://www.chess.com"]

[Event "Titled Tuesday Blitz April 25 Early 2023"]
[White "djokovic74"]
[Black "Bekkedahl, Zachary"]
[BlackFideId "2069156"]
[WhiteElo "2586"]
[BlackElo "1943"]
[Result "1-0"]
[Round "01"]
[TimeControl "180+2"]
[Date "2023.04.25"]
[WhiteClock "0:00:12"]
[BlackClock "0:00:50"]

1. e4 {[%clk 0:03:00]}  c5 {[%clk 0:02:58]} 2. Nf3 {[%clk 0:03:01]}  g6 {[%clk 0:02:55]} 3. d4 {[%clk 0:03:00]}  cxd4 {[%clk 0:02:55]} 4. Nxd4 {[%clk 0:03:01]}  Nc6 {[%clk 0:02:54]} 5. c4 {[%clk 0:03:01]}  d6 {[%clk 0:02:52]} 6. Nc3 {[%clk 0:02:57]}  Nf6 {[%clk 0:02:46]} 7. Be2 {[%clk 0:02:56]}  Nxd4 {[%clk 0:02:45]} 8. Qxd4 {[%clk 0:02:55]}  Bg7 {[%clk 0:02:45]} 9. Be3 {[%clk 0:02:56]}  O-O {[%clk 0:02:45]} 10. Qd2 {[%clk 0:02:57]}  a5 {[%clk 0:02:36]} 11. f3 {[%clk 0:02:53]}  a4 {[%clk 0:02:36]} 12. O-O {[%clk 0:02:52]}  Qa5 {[%clk 0:02:32]} 13. Rfd1 {[%clk 0:02:30]}  Be6 {[%clk 0:02:26]} 14. Rac1 {[%clk 0:02:24]}  Rfc8 {[%clk 0:02:24]} 15. Nd5 {[%clk 0:02:12]}  Qxd2 {[%clk 0:02:21]} 16. Bxd2 {[%clk 0:02:07]}  Bxd5 {[%clk 0:02:15]} 17. cxd5 {[%clk 0:02:06]}  Nd7 {[%clk 0:02:11]} 18. Bc3 {[%clk 0:02:04]}  Bxc3 {[%clk 0:02:06]} 19. bxc3 {[%clk 0:02:04]}  Rc7 {[%clk 0:01:59]} 20. c4 {[%clk 0:01:58]}  Nc5 {[%clk 0:01:39]} 21. Rb1 {[%clk 0:01:56]}  Ra7 {[%clk 0:01:31]} 22. Kf2 {[%clk 0:01:55]}  f6 {[%clk 0:01:30]} 23. Ke3 {[%clk 0:01:50]}  Kf7 {[%clk 0:01:30]} 24. f4 {[%clk 0:01:42]}  h6 {[%clk 0:01:30]} 25. h4 {[%clk 0:01:41]}  Kg7 {[%clk 0:01:29]} 26. Rb5 {[%clk 0:01:38]}  Rc8 {[%clk 0:01:29]} 27. g3 {[%clk 0:01:25]}  Kf7 {[%clk 0:01:29]} 28. Rb4 {[%clk 0:01:22]}  Kg7 {[%clk 0:01:29]} 29. Rg1 {[%clk 0:01:19]}  Kf7 {[%clk 0:01:29]} 30. Rf1 {[%clk 0:01:07]}  Rg8 {[%clk 0:01:28]} 31. Rh1 {[%clk 0:01:06]}  Rh8 {[%clk 0:01:26]} 32. Bg4 {[%clk 0:01:03]}  Rha8 {[%clk 0:01:22]} 33. Rb2 {[%clk 0:00:58]}  Kg7 {[%clk 0:01:22]} 34. Rf1 {[%clk 0:00:55]}  Rf8 {[%clk 0:01:22]} 35. Rb5 {[%clk 0:00:52]}  Rfa8 {[%clk 0:01:22]} 36. Rfb1 {[%clk 0:00:50]}  Rf8 {[%clk 0:01:21]} 37. e5 {[%clk 0:00:49]}  fxe5 {[%clk 0:01:19]} 38. fxe5 {[%clk 0:00:50]}  Re8 {[%clk 0:01:10]} 39. Rf1 {[%clk 0:00:43]}  Rf8 {[%clk 0:01:10]} 40. Rxf8 {[%clk 0:00:40]}  Kxf8 {[%clk 0:01:11]} 41. Kd4 {[%clk 0:00:41]}  Ra8 {[%clk 0:01:07]} 42. Rb6 {[%clk 0:00:37]}  Rd8 {[%clk 0:01:05]} 43. Bd1 {[%clk 0:00:34]}  Kf7 {[%clk 0:01:01]} 44. Rb4 {[%clk 0:00:31]}  g5 {[%clk 0:01:00]} 45. hxg5 {[%clk 0:00:31]}  hxg5 {[%clk 0:01:00]} 46. Bxa4 {[%clk 0:00:28]}  Ra8 {[%clk 0:00:58]} 47. Bb3 {[%clk 0:00:26]}  Ra7 {[%clk 0:00:57]} 48. Rb6 {[%clk 0:00:22]}  Ra6 {[%clk 0:00:46]} 49. Rxa6 {[%clk 0:00:18]}  bxa6 {[%clk 0:00:47]} 50. Bc2 {[%clk 0:00:19]}  Kg7 {[%clk 0:00:47]} 51. Bf5 {[%clk 0:00:18]}  Kf7 {[%clk 0:00:46]} 52. Bc2 {[%clk 0:00:18]}  Kg7 {[%clk 0:00:46]} 53. e6 {[%clk 0:00:19]}  Kf6 {[%clk 0:00:47]} 54. Bd1 {[%clk 0:00:17]}  a5 {[%clk 0:00:40]} 55. Bc2 {[%clk 0:00:16]}  Na6 {[%clk 0:00:41]} 56. Ba4 {[%clk 0:00:13]}  Nb4 {[%clk 0:00:41]} 57. Bb3 {[%clk 0:00:12]}  Na6 {[%clk 0:00:41]} 58. a3 {[%clk 0:00:12]}  Nc5 {[%clk 0:00:42]} 59. Bd1 {[%clk 0:00:13]}  Na6 {[%clk 0:00:42]} 60. Ba4 {[%clk 0:00:13]}  Nc5 {[%clk 0:00:43]} 61. Bc2 {[%clk 0:00:13]}  Nb7 {[%clk 0:00:43]} 62. Bd3 {[%clk 0:00:08]}  Kg7 {[%clk 0:00:43]} 63. Ke4 {[%clk 0:00:07]}  Kf6 {[%clk 0:00:43]} 64. Bc2 {[%clk 0:00:07]}  Nc5+ {[%clk 0:00:43]} 65. Kd4 {[%clk 0:00:08]}  a4 {[%clk 0:00:43]} 66. Bd1 {[%clk 0:00:07]}  Nb3+ {[%clk 0:00:43]} 67. Bxb3 {[%clk 0:00:07]}  axb3 {[%clk 0:00:43]} 68. Kc3 {[%clk 0:00:08]}  Ke5 {[%clk 0:00:43]} 69. Kxb3 {[%clk 0:00:06]}  Kd4 {[%clk 0:00:44]} 70. Kb4 {[%clk 0:00:07]}  Ke3 {[%clk 0:00:44]} 71. a4 {[%clk 0:00:07]}  Kf3 {[%clk 0:00:45]} 72. a5 {[%clk 0:00:08]}  Kxg3 {[%clk 0:00:45]} 73. a6 {[%clk 0:00:08]}  Kg2 {[%clk 0:00:46]} 74. a7 {[%clk 0:00:09]}  g4 {[%clk 0:00:47]} 75. a8=Q {[%clk 0:00:09]}  g3 {[%clk 0:00:48]} 76. Qg8 {[%clk 0:00:09]}  Kf2 {[%clk 0:00:49]} 77. c5 {[%clk 0:00:10]}  g2 {[%clk 0:00:50]} 78. cxd6 {[%clk 0:00:10]}  exd6 {[%clk 0:00:49]} 79. e7 {[%clk 0:00:10]}  g1=Q {[%clk 0:00:50]} 80. Qxg1+ {[%clk 0:00:11]}  Kxg1 {[%clk 0:00:50]} 81. e8=Q {[%clk 0:00:12]} 1-0


[Site "https://www.chess.com"]

[Event "Titled Tuesday Blitz April 25 Early 2023"]
[White "Shimelkov, Vasiliy"]
[Black "Chakravarthi Reddy, M"]
[WhiteFideId "13701630"]
[BlackFideId "25009532"]
[WhiteElo "2073"]
[BlackElo "2201"]
[Result "0-1"]
[Round "01"]
[TimeControl "180+2"]
[Date "2023.04.25"]
[WhiteClock "0:00:01"]
[BlackClock "0:00:07"]

1. d4 {[%clk 0:02:58]}  d5 {[%clk 0:02:59]} 2. Nf3 {[%clk 0:02:58]}  Nf6 {[%clk 0:02:59]} 3. c4 {[%clk 0:02:58]}  c6 {[%clk 0:02:59]} 4. Nc3 {[%clk 0:02:57]}  e6 {[%clk 0:03:00]} 5. Bg5 {[%clk 0:02:56]}  Nbd7 {[%clk 0:03:00]} 6. e3 {[%clk 0:02:55]}  h6 {[%clk 0:03:00]} 7. Bh4 {[%clk 0:02:53]}  g5 {[%clk 0:03:00]} 8. Bg3 {[%clk 0:02:52]}  Nh5 {[%clk 0:03:01]} 9. Bd3 {[%clk 0:02:47]}  Nxg3 {[%clk 0:02:58]} 10. hxg3 {[%clk 0:02:47]}  Bg7 {[%clk 0:02:58]} 11. Rc1 {[%clk 0:02:41]}  Qe7 {[%clk 0:02:37]} 12. Qe2 {[%clk 0:02:36]}  dxc4 {[%clk 0:02:31]} 13. Bxc4 {[%clk 0:02:35]}  e5 {[%clk 0:02:31]} 14. dxe5 {[%clk 0:02:27]}  Nxe5 {[%clk 0:02:31]} 15. Nxe5 {[%clk 0:02:23]}  Qxe5 {[%clk 0:02:21]} 16. Qf3 {[%clk 0:01:49]}  O-O {[%clk 0:02:18]} 17. O-O {[%clk 0:01:25]}  Bf5 {[%clk 0:02:16]} 18. e4 {[%clk 0:01:14]}  Bg6 {[%clk 0:02:12]} 19. Qe3 {[%clk 0:01:12]}  Rad8 {[%clk 0:02:05]} 20. Rcd1 {[%clk 0:01:09]}  a5 {[%clk 0:01:53]} 21. f4 {[%clk 0:01:06]}  Qe7 {[%clk 0:01:27]} 22. e5 {[%clk 0:00:53]}  Rxd1 {[%clk 0:01:17]} 23. Nxd1 {[%clk 0:00:48]}  Bf5 {[%clk 0:01:12]} 24. fxg5 {[%clk 0:00:46]}  Bg6 {[%clk 0:00:43]} 25. Rf6 {[%clk 0:00:28]}  Bxf6 {[%clk 0:00:37]} 26. gxf6 {[%clk 0:00:28]}  Qd7 {[%clk 0:00:37]} 27. Nf2 {[%clk 0:00:23]}  Kh7 {[%clk 0:00:36]} 28. Be2 {[%clk 0:00:20]}  Qf5 {[%clk 0:00:33]} 29. Ng4 {[%clk 0:00:16]}  Qg5 {[%clk 0:00:29]} 30. Qd4 {[%clk 0:00:16]}  h5 {[%clk 0:00:27]} 31. Nf2 {[%clk 0:00:13]}  Rg8 {[%clk 0:00:27]} 32. Nh3 {[%clk 0:00:12]}  Qxg3 {[%clk 0:00:26]} 33. Qd2 {[%clk 0:00:08]}  Bf5 {[%clk 0:00:24]} 34. Nf4 {[%clk 0:00:06]}  h4 {[%clk 0:00:22]} 35. Bh5 {[%clk 0:00:03]}  h3 {[%clk 0:00:20]} 36. Bxf7 {[%clk 0:00:03]}  h2+ {[%clk 0:00:17]} 37. Kh1 {[%clk 0:00:03]}  Rg4 {[%clk 0:00:17]} 38. e6 {[%clk 0:00:03]}  Rxf4 {[%clk 0:00:17]} 39. Qe2 {[%clk 0:00:01]}  Bg4 {[%clk 0:00:15]} 40. Qc2+ {[%clk 0:00:01]}  Bf5 {[%clk 0:00:15]} 41. Qe2 {[%clk 0:00:01]}  Bg4 {[%clk 0:00:15]} 42. Qc2+ {[%clk 0:00:01]}  Rf5 {[%clk 0:00:12]} 43. Bg6+ {[%clk 0:00:02]}  Kxg6 {[%clk 0:00:12]} 44. e7 {[%clk 0:00:01]}  Qe1+ {[%clk 0:00:08]} 45. Kxh2 {[%clk 0:00:01]}  Kg5 {[%clk 0:00:07]} 0-1


[Site "https://www.chess.com"]